bitfinex-derivatives/quotes_BTCF0:USTF0_20250929
["timestamp","ask_amount","ask_price","bid_price","bid_amount"]
[1759164783649,0.15589675,113850.0,113840.0,1.89985762]
[1759164784853,0.15589675,113850.0,113840.0,1.81207222]
[1759164785049,0.18742563,113850.0,113840.0,1.00563222]
[1759164785252,0.5574035,113850.0,113840.0,0.65571611]
[1759164785554,0.60748739,113850.0,113840.0,1.06063222]
[1759164785951,0.60748739,113850.0,113840.0,0.71071611]
[1759164786152,0.9574035,113850.0,113840.0,0.71071611]
[1759164786555,0.93734174,113850.0,113840.0,0.71071611]
[1759164786748,0.93734174,113850.0,113840.0,0.34991611]
[1759164787355,0.1014354,113840.0,113830.0,1.16724]
[1759164787546,0.12195445,113840.0,113830.0,1.51715611]
[1759164788259,0.14405445,113840.0,113830.0,0.71071611]
[1759164788457,0.14405445,113840.0,113830.0,1.51719611]
[1759164788658,0.14405445,113840.0,113830.0,1.86711222]
[1759164788956,0.14405445,113840.0,113830.0,1.51719611]
[1759164789550,0.15005445,113840.0,113830.0,0.71071611]
[1759164789751,0.15005445,113840.0,113830.0,1.51719611]
[1759164790052,0.14705445,113840.0,113830.0,1.51719611]
[1759164790250,0.14705445,113840.0,113830.0,0.71071611]
[1759164790462,0.14705445,113840.0,113830.0,1.06063222]
[1759164790757,0.14705445,113840.0,113830.0,0.71071611]
[1759164790958,0.21873297,113840.0,113830.0,1.51719611]
[1759164791252,0.21873297,113840.0,113830.0,0.3608]
[1759164791458,0.21873297,113840.0,113830.0,1.51719611]
[1759164792255,0.61873297,113840.0,113830.0,0.3608]
[1759164792557,0.1235431,113830.0,113820.0,0.35001037]
[1759164792757,0.14406215,113830.0,113820.0,9.426e-05]
[1759164792960,0.14406215,113830.0,113820.0,0.71081037]
[1759164793156,0.14406215,113830.0,113820.0,1.06072648]
[1759164794253,0.14406215,113830.0,113820.0,0.71081037]
[1759164794460,0.14406215,113830.0,113820.0,1.06072648]
[1759164795155,0.14406215,113830.0,113820.0,0.36089426]
[1759164795459,0.14406215,113830.0,113820.0,1.06072648]
[1759164797851,0.14406215,113830.0,113820.0,0.36089426]
[1759164798060,0.14406215,113830.0,113820.0,1.06072648]
[1759164798471,0.14406215,113830.0,113820.0,1.14852728]
[1759164798761,0.14406215,113830.0,113820.0,1.06072648]
[1759164799062,0.14406215,113830.0,113820.0,0.36089426]
[1759164799357,0.14406215,113830.0,113820.0,1.06072648]
[1759164804060,0.14406215,113830.0,113820.0,0.36089426]
[1759164804264,0.49397826,113830.0,113820.0,0.71081037]
[1759164804465,0.52550714,113830.0,113820.0,0.71081037]
[1759164805468,0.52550714,113830.0,113820.0,0.36089426]
[1759164805763,0.52550714,113830.0,113820.0,0.71081037]
[1759164805965,0.52550714,113830.0,113820.0,0.36089426]
[1759164806359,0.52550714,113830.0,113820.0,0.71081037]
[1759164806561,0.17559103,113830.0,113820.0,0.71081037]
[1759164806761,0.17559103,113830.0,113820.0,1.06072648]
[1759164808366,0.52550714,113830.0,113820.0,1.06072648]
[1759164808572,0.92550714,113830.0,113820.0,0.36089426]
[1759164808870,0.92550714,113830.0,113820.0,9.426e-05]
[1759164809263,0.92550714,113830.0,113820.0,0.35001037]
[1759164810264,1.74494714,113830.0,113820.0,0.35001037]
[1759164810967,0.92550714,113830.0,113820.0,0.35001037]
[1759164811167,1.74494714,113830.0,113820.0,0.35001037]
[1759164811368,1.74486714,113830.0,113820.0,0.35001037]
[1759164811762,1.71333826,113830.0,113820.0,0.35001037]
[1759164811969,0.89397826,113830.0,113820.0,0.35001037]
[1759164812170,1.71317826,113830.0,113820.0,0.35001037]
[1759164812468,0.89397826,113830.0,113820.0,0.35001037]
[1759164812661,1.71317826,113830.0,113820.0,0.35001037]
[1759164812863,1.74470714,113830.0,113820.0,0.35001037]
[1759164814270,1.76540138,113830.0,113820.0,9.426e-05]
[1759164814464,1.76540138,113830.0,113820.0,0.35001037]
[1759164815364,0.94620138,113830.0,113820.0,0.35001037]
[1759164815663,1.76516138,113830.0,113820.0,0.35001037]
[1759164816065,1.7336325,113830.0,113820.0,0.35001037]
[1759164817167,1.7336325,113830.0,113820.0,9.426e-05]
[1759164817371,1.7336325,113830.0,113820.0,0.35001037]
[1759164818567,1.7336325,113830.0,113820.0,9.426e-05]
[1759164818772,1.7336325,113830.0,113820.0,0.35001037]
[1759164819480,1.3336325,113830.0,113820.0,0.35001037]
[1759164819671,0.5146725,113830.0,113820.0,0.35001037]
[1759164819871,0.16475639,113830.0,113820.0,0.35001037]
[1759164820073,0.98343639,113830.0,113820.0,0.35001037]
[1759164820277,1.3333525,113830.0,113820.0,0.35001037]
[1759164820775,0.98343639,113830.0,113820.0,0.35001037]
[1759164820976,1.3333525,113830.0,113820.0,0.35001037]
[1759164821577,0.5146725,113830.0,113820.0,9.426e-05]
[1759164821777,1.36468138,113830.0,113820.0,0.35001037]
[1759164822078,1.36460138,113830.0,113820.0,0.35001037]
[1759164823066,1.01468527,113830.0,113820.0,9.426e-05]
[1759164823269,1.36460138,113830.0,113820.0,0.35001037]
[1759164823977,1.01468527,113830.0,113820.0,0.35001037]
[1759164824272,1.41191587,113830.0,113820.0,0.35001037]
[1759164825275,1.06199976,113830.0,113820.0,0.35001037]
[1759164825473,1.36460138,113830.0,113820.0,0.71081037]
[1759164826174,1.36460138,113830.0,113820.0,0.36089426]
[1759164826381,1.01468527,113830.0,113820.0,0.71106259]
[1759164827681,1.06199976,113830.0,113820.0,0.35026259]
[1759164827881,1.06199976,113830.0,113820.0,9.426e-05]
[1759164829182,1.01468527,113830.0,113820.0,0.35026259]
[1759164829880,1.01416527,113830.0,113820.0,0.35026259]
[1759164830481,1.01400527,113830.0,113820.0,0.35026259]
[1759164831071,0.19628527,113830.0,113820.0,0.35026259]
[1759164831277,1.01400527,113830.0,113820.0,0.35026259]
[1759164832382,0.19628527,113830.0,113820.0,0.35026259]
[1759164832582,1.01400527,113830.0,113820.0,0.35026259]
[1759164832787,0.19628527,113830.0,113820.0,0.35026259]
[1759164832979,1.01400527,113830.0,113820.0,0.35026259]
[1759164835186,1.01444174,113830.0,113820.0,0.35026259]
[1759164835980,1.01392174,113830.0,113820.0,0.35026259]
[1759164836384,1.06127623,113830.0,113820.0,0.35026259]
[1759164838289,1.06127623,113830.0,113820.0,9.426e-05]
[1759164838486,1.06127623,113830.0,113820.0,0.35026259]
[1759164838786,1.06127623,113830.0,113820.0,9.426e-05]
[1759164840386,1.02974735,113830.0,113820.0,9.426e-05]
[1759164840589,1.02974735,113830.0,113820.0,0.35026259]
[1759164840788,1.02974735,113830.0,113820.0,9.426e-05]
[1759164844089,0.21250735,113830.0,113820.0,9.426e-05]
[1759164844278,1.02958735,113830.0,113820.0,9.426e-05]
[1759164846285,1.02958735,113830.0,113820.0,0.35026259]
[1759164847090,1.02946735,113830.0,113820.0,0.35026259]
[1759164847890,1.02950735,113830.0,113820.0,0.35026259]
[1759164849792,1.06108605,113830.0,113820.0,0.35026259]
[1759164851694,1.02950735,113830.0,113820.0,0.35026259]
[1759164853489,0.98219286,113830.0,113820.0,0.35026259]
[1759164856393,1.02956772,113830.0,113820.0,0.35026259]
[1759164857399,0.21256772,113830.0,113820.0,0.35026259]
[1759164857591,1.02868772,113830.0,113820.0,0.35026259]
[1759164857791,0.21256772,113830.0,113820.0,0.35026259]
[1759164857997,1.02836772,113830.0,113820.0,0.35026259]
[1759164858293,0.21256772,113830.0,113820.0,0.35026259]
[1759164858494,1.02832772,113830.0,113820.0,0.35026259]
[1759164859002,0.98095286,113830.0,113820.0,0.35026259]
[1759164861204,1.04398368,113830.0,113820.0,0.35026259]
[1759164861800,1.02831212,113830.0,113820.0,0.35026259]
[1759164862192,1.02831212,113830.0,113820.0,9.426e-05]
[1759164862900,1.02831159,113830.0,113820.0,9.426e-05]
[1759164864506,1.02831159,113830.0,113820.0,0.35026259]
[1759164868710,1.02831159,113830.0,113820.0,9.426e-05]
[1759164869014,1.73927992,113830.0,113820.0,9.426e-05]
[1759164869408,1.38911159,113830.0,113820.0,9.426e-05]
[1759164869808,1.38911159,113830.0,113820.0,0.35026259]
[1759164870010,1.38859159,113830.0,113820.0,0.35026259]
[1759164870504,1.02779159,113830.0,113820.0,0.35026259]
[1759164872218,1.38859159,113830.0,113820.0,0.35026259]
[1759164872711,1.38859159,113830.0,113820.0,9.426e-05]
[1759164874311,1.38859159,113830.0,113820.0,6e-08]
[1759164874312,1.73875992,113830.0,113820.0,6e-08]
[1759164874513,0.87616066,113830.0,113820.0,6e-08]
[1759164874814,1.69144066,113830.0,113820.0,6e-08]
[1759164875012,1.7387893,113830.0,113820.0,6e-08]
[1759164875720,1.7388835,113830.0,113820.0,6e-08]
[1759164878123,1.38871517,113830.0,113820.0,6e-08]
[1759164878422,1.7388835,113830.0,113820.0,6e-08]
[1759164878618,1.7388035,113830.0,113820.0,6e-08]
[1759164879015,0.9236035,113830.0,113820.0,6e-08]
[1759164879225,1.7389235,113830.0,113820.0,6e-08]
[1759164879418,0.9236035,113830.0,113820.0,6e-08]
[1759164879624,1.7389235,113830.0,113820.0,6e-08]
[1759164880026,0.9236035,113830.0,113820.0,6e-08]
[1759164880224,1.7388835,113830.0,113820.0,6e-08]
[1759164880426,1.7389235,113830.0,113820.0,6e-08]
[1759164881922,1.72312184,113830.0,113820.0,6e-08]
[1759164882915,1.72310376,113830.0,113820.0,6e-08]
[1759164885027,0.90778376,113830.0,113820.0,6e-08]
[1759164885216,1.72294376,113830.0,113820.0,6e-08]
[1759164885929,0.90778376,113830.0,113820.0,6e-08]
[1759164886425,1.72265462,113830.0,113820.0,6e-08]
[1759164886931,1.72257462,113830.0,113820.0,6e-08]
[1759164887228,0.55761543,113830.0,113820.0,6e-08]
[1759164887428,1.72261462,113830.0,113820.0,6e-08]
[1759164889130,1.73841628,113830.0,113820.0,6e-08]
[1759164890526,1.73840979,113830.0,113820.0,6e-08]
[1759164891725,1.75409197,113830.0,113820.0,6e-08]
[1759164893127,1.69106115,113830.0,113820.0,6e-08]
[1759164895833,1.69042115,113830.0,113820.0,6e-08]
[1759164896423,1.75345197,113830.0,113820.0,6e-08]
[1759164898131,0.93937197,113830.0,113820.0,6e-08]
[1759164898534,1.73748882,113830.0,113820.0,6e-08]
[1759164901930,1.72172126,113830.0,113820.0,6e-08]
[1759164903725,0.55764207,113830.0,113820.0,6e-08]
[1759164903930,1.72144126,113830.0,113820.0,6e-08]
[1759164904334,0.90788126,113830.0,113820.0,6e-08]
[1759164904530,1.72144126,113830.0,113820.0,6e-08]
[1759164904930,1.72148126,113830.0,113820.0,6e-08]
[1759164905235,0.55764207,113830.0,113820.0,0.70047844]
[1759164905433,0.17614783,113830.0,113820.0,0.70047844]
[1759164905631,0.99026783,113830.0,113820.0,0.70047844]
[1759164906839,1.34050702,113830.0,113820.0,0.70047844]
[1759164909038,1.34050702,113830.0,113820.0,6e-08]
[1759164909337,1.34050702,113830.0,113820.0,0.35023925]
[1759164910435,1.70130702,113830.0,113820.0,0.35023925]
[1759164910939,1.70130702,113830.0,113820.0,6e-08]
[1759164913742,1.71707458,113830.0,113820.0,6e-08]
[1759164916138,1.36683539,113830.0,113820.0,6e-08]
[1759164916339,1.71707458,113830.0,113820.0,6e-08]
[1759164916744,1.71707458,113830.0,113820.0,0.35023925]
[1759164918849,1.71707458,113830.0,113820.0,6e-08]
[1759164919840,1.66976691,113830.0,113820.0,6e-08]
[1759164921042,0.50540772,113830.0,113820.0,6e-08]
[1759164921348,1.66876691,113830.0,113820.0,6e-08]
[1759164921840,1.71605047,113830.0,113820.0,6e-08]
[1759164922549,1.66876691,113830.0,113820.0,6e-08]
[1759164924344,0.85564691,113830.0,113820.0,6e-08]
[1759164924548,1.66856691,113830.0,113820.0,6e-08]
[1759164925953,0.85564691,113830.0,113820.0,6e-08]
[1759164926152,1.66840691,113830.0,113820.0,6e-08]
[1759164927056,1.66832691,113830.0,113820.0,6e-08]
[1759164927246,1.31808772,113830.0,113820.0,6e-08]
[1759164927447,1.66832691,113830.0,113820.0,6e-08]
[1759164929548,2.0185661,113830.0,113820.0,6e-08]
[1759164929749,1.66832691,113830.0,113820.0,6e-08]
[1759164929945,2.48150272,113830.0,113790.0,0.3608]
[1759164930153,0.47234539,113800.0,113790.0,0.71103919]
[1759164930354,0.49327581,113800.0,113790.0,0.71103919]
[1759164931057,0.49336791,113800.0,113790.0,0.72803919]
[1759164931752,0.49336791,113800.0,113790.0,0.71403919]
[1759164931953,0.14312872,113800.0,113790.0,0.71403919]
[1759164932352,0.49336791,113800.0,113790.0,0.71403919]
[1759164932557,0.49336791,113800.0,113790.0,0.71103919]
[1759164932754,0.49336791,113800.0,113790.0,0.3668]
[1759164932949,0.49336791,113800.0,113790.0,0.7668]
[1759164933150,0.15205592,113800.0,113790.0,1.11703919]
[1759164933354,1.31501511,113800.0,113790.0,0.7668]
[1759164933554,1.31501511,113800.0,113790.0,1.11703919]
[1759164933749,0.50229511,113800.0,113790.0,1.11703919]
[1759164934050,0.96477592,113800.0,113790.0,1.11703919]
[1759164934245,1.31501511,113800.0,113790.0,1.11703919]
[1759164934457,1.38511715,113800.0,113790.0,1.11703919]
[1759164934658,1.03487796,113800.0,113790.0,1.11703919]
[1759164935561,0.22215796,113800.0,113790.0,1.11703919]
[1759164935762,1.03491796,113800.0,113790.0,1.11703919]
[1759164936061,1.03487796,113800.0,113790.0,1.11703919]
[1759164936264,1.03487796,113800.0,113790.0,0.7668]
[1759164936465,1.38511715,113800.0,113790.0,1.11703919]
[1759164936772,1.03487796,113800.0,113790.0,0.7668]
[1759164936964,1.03487796,113800.0,113790.0,1.11703919]
[1759164937158,1.38511715,113800.0,113790.0,0.7668]
[1759164937461,1.38511715,113800.0,113790.0,1.11703919]
[1759164938167,1.38511715,113800.0,113790.0,0.7668]
[1759164938365,1.38511715,113800.0,113790.0,1.11703919]
[1759164938868,1.38535715,113800.0,113790.0,1.11703919]
[1759164939061,1.38531715,113800.0,113790.0,0.7668]
[1759164939367,1.38531715,113800.0,113790.0,1.11703919]
[1759164939568,1.38531715,113800.0,113790.0,0.71703919]
[1759164939764,1.38531715,113800.0,113790.0,0.3668]
[1759164939966,1.4053985,113800.0,113790.0,0.71703919]
[1759164940466,1.4053985,113800.0,113790.0,0.3668]
[1759164940666,1.4053985,113800.0,113790.0,0.71703919]
[1759164941168,0.5924785,113800.0,113790.0,0.71703919]
[1759164941470,1.4055185,113800.0,113790.0,0.71703919]
[1759164941766,0.24223931,113800.0,113790.0,0.71703919]
[1759164941967,0.5924785,113800.0,113790.0,0.71703919]
[1759164942168,1.05527931,113800.0,113790.0,0.3668]
[1759164942368,1.05531931,113800.0,113790.0,0.71703919]
[1759164943160,1.05531931,113800.0,113790.0,0.3668]
[1759164943366,1.05571931,113800.0,113790.0,0.71703919]
[1759164945268,1.05563931,113800.0,113790.0,0.71703919]
[1759164948376,1.05563931,113800.0,113790.0,0.71712124]
[1759164948976,1.05563931,113800.0,113790.0,0.3668]
[1759164949177,1.05563931,113800.0,113790.0,0.71712124]
[1759164951790,1.05563931,113800.0,113790.0,0.3668]
[1759164952292,1.05563931,113800.0,113790.0,0.71712124]
[1759164956289,1.40596055,113800.0,113790.0,0.006]
[1759164956794,1.05563931,113800.0,113790.0,0.006]
[1759164957688,0.0878239,113790.0,113780.0,0.71112124]
[1759164957889,0.14378432,113790.0,113780.0,0.71112124]
[1759164958187,0.14378432,113790.0,113780.0,0.79895294]
[1759164959394,0.14378432,113790.0,113780.0,0.80495294]
[1759164960495,0.14378432,113790.0,113780.0,0.71712124]
[1759164960685,0.14378432,113790.0,113780.0,0.3638]
[1759164960995,0.14378432,113790.0,113780.0,0.71412124]
[1759164961697,0.14378432,113790.0,113780.0,1.11412124]
[1759164967395,0.05596042,113790.0,113780.0,1.11412124]
[1759164967800,0.14378432,113790.0,113780.0,1.11412124]
[1759164968298,0.14378432,113790.0,113780.0,0.7638]
[1759164968497,0.14378432,113790.0,113780.0,1.11412124]
[1759164973406,0.14378432,113790.0,113780.0,0.7638]
[1759164973705,0.14378432,113790.0,113780.0,1.11412124]
[1759164976807,0.14378432,113790.0,113780.0,0.7638]
[1759164977007,0.14378432,113790.0,113780.0,1.11412124]
[1759164981615,0.14378432,113790.0,113780.0,0.7638]
[1759164981913,0.14378432,113790.0,113780.0,1.11412124]
[1759164984611,0.05596042,113790.0,113780.0,1.11412124]
[1759164984815,0.14378432,113790.0,113780.0,1.11412124]
[1759164988111,0.05596042,113790.0,113780.0,1.20195284]
[1759164988317,0.05596042,113790.0,113780.0,0.8516316]
[1759164988614,0.05596042,113790.0,113780.0,1.20195284]
[1759164989614,0.14378432,113790.0,113780.0,1.11412124]
[1759164990914,0.05596042,113790.0,113780.0,1.20195284]
[1759164993312,0.14378432,113790.0,113780.0,1.20195284]
[1759164993713,0.14378432,113790.0,113780.0,1.11412124]
[1759164996016,0.14378432,113790.0,113780.0,0.3638]
[1759164996215,0.14378432,113790.0,113780.0,0.80195284]
[1759164997120,0.14378432,113790.0,113780.0,0.71412124]
[1759164997615,0.14371438,113790.0,113780.0,0.71412124]
[1759164999223,0.05589048,113790.0,113780.0,0.80195284]
[1759164999424,0.14371428,113790.0,113780.0,0.80195284]
[1759165000421,0.14371369,113790.0,113780.0,0.80195284]
[1759165002231,0.14371369,113790.0,113780.0,0.71412124]
[1759165002729,0.14371369,113790.0,113780.0,0.80195274]
[1759165004733,0.14371369,113790.0,113780.0,1.61311274]
[1759165005230,0.14371369,113790.0,113780.0,0.80195274]
[1759165005428,0.14371369,113790.0,113780.0,1.61303274]
[1759165006031,0.05588989,113790.0,113780.0,1.61303274]
[1759165006829,0.14371369,113790.0,113780.0,0.80195274]
[1759165007031,0.14371369,113790.0,113780.0,1.61279274]
[1759165007431,0.14371369,113790.0,113780.0,0.71412124]
[1759165007732,0.14371369,113790.0,113780.0,1.52496124]
[1759165007928,0.14371369,113790.0,113780.0,0.71412124]
[1759165008328,0.14371369,113790.0,113780.0,1.0644695]
[1759165008528,0.14371369,113790.0,113780.0,1.8753095]
[1759165009334,0.14371369,113790.0,113780.0,1.0644695]
[1759165009633,0.05588989,113790.0,113780.0,1.152301]
[1759165010332,0.14371369,113790.0,113780.0,0.3638]
[1759165010522,0.14371369,113790.0,113780.0,1.0644695]
[1759165010723,0.14371369,113790.0,113780.0,0.3638]
[1759165010922,0.14371369,113790.0,113780.0,1.0644695]
[1759165014327,0.49404844,113790.0,113780.0,0.71413475]
[1759165014528,0.14371369,113790.0,113780.0,0.71413475]
[1759165014835,0.14371369,113790.0,113780.0,1.0644695]
[1759165016238,0.14371369,113790.0,113780.0,0.3638]
[1759165016430,0.14371369,113790.0,113780.0,1.0644695]
[1759165017736,0.49404844,113790.0,113780.0,0.71413475]
[1759165017927,0.14371369,113790.0,113780.0,1.0644695]
[1759165018334,0.49404844,113790.0,113780.0,0.3638]
[1759165018641,0.49404844,113790.0,113780.0,0.71413475]
[1759165018938,0.14371369,113790.0,113780.0,0.71413475]
[1759165019141,0.14371369,113790.0,113780.0,0.3638]
[1759165019438,0.49404844,113790.0,113780.0,0.71413475]
[1759165019634,0.49404844,113790.0,113780.0,0.3638]
[1759165019835,0.49404844,113790.0,113780.0,0.003]
[1759165019836,0.54379009,113790.0,113780.0,0.003]
[1759165020037,0.93610442,113790.0,113780.0,0.003]
[1759165020338,1.28643917,113790.0,113780.0,0.003]
[1759165020540,1.74986442,113790.0,113780.0,0.003]
[1759165020736,2.10019917,113790.0,113780.0,0.003]
[1759165021134,1.74986442,113790.0,113780.0,0.003]
[1759165021334,2.10019917,113790.0,113780.0,0.003]
[1759165021536,0.01313,113770.0,113760.0,0.71113475]
[1759165021735,0.05669415,113770.0,113760.0,1.0614695]
[1759165022240,0.05669415,113770.0,113760.0,1.1493165]
[1759165022931,0.05669415,113770.0,113760.0,1.1543165]
[1759165023142,0.05669415,113770.0,113760.0,0.3658]
[1759165023342,0.05669415,113770.0,113760.0,0.3608]
[1759165023542,0.05669415,113770.0,113760.0,1.0644695]
[1759165024950,0.05669415,113770.0,113760.0,1.8802295]
[1759165025151,0.14453345,113770.0,113760.0,0.3638]
[1759165025344,0.14453345,113770.0,113760.0,1.8802295]
[1759165026148,0.14453345,113770.0,113760.0,1.0644695]
[1759165026338,0.14453345,113770.0,113760.0,0.3638]
[1759165026543,0.14453345,113770.0,113760.0,1.0644695]
[1759165026746,0.14453345,113770.0,113760.0,0.3638]
[1759165027050,0.4948682,113770.0,113760.0,0.71413475]
[1759165027749,0.14453345,113770.0,113760.0,0.71413475]
[1759165027948,0.4948682,113770.0,113760.0,0.71413475]
[1759165028452,0.8948682,113770.0,113760.0,0.003]
[1759165029339,1.2556682,113770.0,113760.0,0.003]
[1759165030055,0.1235947,113750.0,113740.0,0.3608]
[1759165030345,0.12368896,113750.0,113740.0,1.0614695]
[1759165030553,0.1438261,113750.0,113740.0,0.71113475]
[1759165030742,0.51494583,113750.0,113740.0,0.35033475]
[1759165030948,0.49416085,113750.0,113740.0,0.35033475]
[1759165031543,0.51498843,113750.0,113740.0,0.35633475]
[1759165031751,0.51498843,113750.0,113740.0,0.36733475]
[1759165031946,0.51498838,113750.0,113740.0,0.36733475]
[1759165032147,0.16465363,113750.0,113740.0,0.36733475]
[1759165032352,0.1438261,113750.0,113740.0,0.36733475]
[1759165033146,0.16464686,113750.0,113740.0,0.36733475]
[1759165033545,0.17367233,113750.0,113740.0,0.36733475]
[1759165034156,0.24251903,113750.0,113740.0,0.36733475]
[1759165034352,0.57203302,113750.0,113740.0,0.36733475]
[1759165034659,0.2425088,113750.0,113740.0,0.36733475]
[1759165035358,0.59284355,113750.0,113740.0,0.36733475]
[1759165035555,0.59284355,113750.0,113740.0,0.017]
[1759165035751,0.59284355,113750.0,113740.0,0.36733475]
[1759165035951,0.6425088,113750.0,113740.0,0.017]
[1759165036253,0.99284355,113750.0,113740.0,0.017]
[1759165036658,0.99284355,113750.0,113740.0,0.36733475]
[1759165037160,0.99284355,113750.0,113740.0,0.35033475]
[1759165037358,0.1008325,113740.0,113730.0,1.52786477]
[1759165037559,0.91649559,113740.0,113730.0,1.52786477]
[1759165038959,0.93914559,113740.0,113730.0,0.71122477]
[1759165039759,0.93914559,113740.0,113730.0,0.71622477]
[1759165040666,0.93914559,113740.0,113730.0,0.71422477]
[1759165042159,0.85306,113740.0,113730.0,0.71422477]
[1759165042461,0.9409224,113740.0,113730.0,0.71422477]
[1759165042854,0.1234824,113740.0,113730.0,0.71422477]
[1759165043051,0.9410424,113740.0,113730.0,0.71422477]
[1759165043251,0.9410424,113740.0,113730.0,0.36389002]
[1759165043456,0.9410424,113740.0,113730.0,0.71422477]
[1759165044157,0.9410424,113740.0,113730.0,0.71418477]
[1759165045366,0.1234824,113740.0,113730.0,0.71418477]
[1759165045564,0.9414824,113740.0,113730.0,0.71418477]
[1759165048771,0.1234824,113740.0,113730.0,0.71418477]
[1759165048959,0.9415224,113740.0,113730.0,0.71418477]
[1759165049160,0.96234105,113740.0,113730.0,0.71418477]
[1759165049356,0.96234105,113740.0,113730.0,0.36385002]
[1759165049557,0.96234105,113740.0,113730.0,0.71418477]
[1759165055564,0.96254105,113740.0,113730.0,0.71418477]
[1759165058462,0.99405538,113740.0,113730.0,0.35338477]
[1759165058870,1.34439013,113740.0,113730.0,0.35338477]
[1759165059667,0.99397538,113740.0,113730.0,0.35338477]
[1759165059867,1.34431013,113740.0,113730.0,0.35338477]
[1759165060776,1.34431013,113740.0,113730.0,0.00305002]
[1759165060976,1.69464488,113740.0,113730.0,0.00305002]
[1759165061172,0.1224685,113720.0,113710.0,0.3608]
[1759165061470,0.1224762,113710.0,113700.0,0.81113475]
[1759165061674,0.9413962,113710.0,113700.0,1.1614695]
[1759165061875,0.96222153,113710.0,113700.0,1.1614695]
[1759165062063,0.14330153,113710.0,113700.0,1.1614695]
[1759165062270,1.03225265,113710.0,113700.0,0.81113475]
[1759165062572,1.02325265,113710.0,113700.0,1.1614695]
[1759165062876,0.21313265,113710.0,113700.0,1.1704695]
[1759165063065,1.03285265,113710.0,113700.0,1.1704695]
[1759165063271,0.21313265,113710.0,113700.0,0.4758]
[1759165063470,0.21313265,113710.0,113700.0,1.1764695]
[1759165063867,0.13405328,113710.0,113700.0,1.5764695]
[1759165064072,0.13405328,113710.0,113700.0,2.01469815]
[1759165064374,0.13404556,113710.0,113700.0,1.6643634]
[1759165064577,0.12523873,113710.0,113700.0,1.6643634]
[1759165064878,0.21312493,113710.0,113700.0,2.4842034]
[1759165065976,0.21312218,113710.0,113700.0,2.4842034]
[1759165066764,0.19230732,113710.0,113700.0,2.4842034]
[1759165067476,0.19230732,113710.0,113700.0,2.4853034]
[1759165068273,0.19230732,113710.0,113700.0,1.7846339]
[1759165068476,0.20125166,113710.0,113700.0,2.4853034]
[1759165069375,0.20125166,113710.0,113700.0,2.0853034]
[1759165069570,0.20125166,113710.0,113700.0,1.9974095]
[1759165069969,0.20125166,113710.0,113700.0,2.0853034]
[1759165070164,0.20125166,113710.0,113700.0,1.3846339]
[1759165070376,0.20125166,113710.0,113700.0,2.08623512]
[1759165072175,0.22205329,113710.0,113700.0,1.3846339]
[1759165072375,0.22205329,113710.0,113700.0,2.08623512]
[1759165073278,0.22205329,113710.0,113700.0,2.08483512]
[1759165073482,0.22205309,113710.0,113700.0,1.17850122]
[1759165073677,0.22205309,113710.0,113700.0,1.99658122]
[1759165074182,0.22205309,113710.0,113700.0,1.17850122]
[1759165074777,0.20125166,113710.0,113700.0,1.17850122]
[1759165075680,0.20125166,113710.0,113700.0,1.64866061]
[1759165076277,0.20125166,113710.0,113700.0,0.82770061]
[1759165077774,0.22205314,113710.0,113700.0,0.46690061]
[1759165078780,0.58285314,113710.0,113700.0,0.1161]
[1759165079578,0.98285314,113710.0,113700.0,0.1161]
[1759165079778,0.98685314,113710.0,113700.0,0.1011]
[1759165079976,0.98885314,113710.0,113700.0,0.1011]
[1759165081076,0.98885314,113710.0,113700.0,0.1]
[1759165081282,1.33965375,113710.0,113700.0,0.1]
[1759165081675,0.98885314,113710.0,113700.0,0.1]
[1759165081881,1.33965375,113710.0,113700.0,0.1]
[1759165082481,1.33565375,113710.0,113700.0,0.1]
[1759165082674,1.34065375,113710.0,113700.0,0.1]
[1759165082875,0.98985314,113710.0,113700.0,0.1]
[1759165086086,1.02125867,113710.0,113700.0,0.1]
[1759165086678,2.19209928,113710.0,113700.0,0.1]
[1759165087183,2.2077209,113710.0,113700.0,0.1]
[1759165087378,1.80989314,113710.0,113700.0,0.1]
[1759165087576,2.16069375,113710.0,113700.0,0.1]
[1759165089185,2.20769556,113710.0,113700.0,0.1]
[1759165089384,2.1920293,113710.0,113700.0,0.1]
[1759165090182,2.1916293,113710.0,113700.0,0.1]
[1759165090688,2.20729556,113710.0,113700.0,0.1]
[1759165091079,1.85649495,113710.0,113700.0,0.1]
[1759165091279,2.20729556,113710.0,113700.0,0.1]
[1759165092088,2.19161773,113710.0,113700.0,0.1]
[1759165092590,2.19161773,113710.0,113700.0,0.1011]
[1759165092776,2.23861954,113710.0,113700.0,0.1011]
[1759165093687,2.16029375,113710.0,113700.0,0.1011]
[1759165094190,1.80949314,113710.0,113700.0,0.1011]
[1759165094489,2.16029375,113710.0,113700.0,0.1011]
[1759165094679,1.34065375,113710.0,113700.0,0.1011]
[1759165094878,2.15961375,113710.0,113700.0,0.1011]
[1759165095690,1.44017712,113710.0,113700.0,0.45190061]
[1759165096395,1.44017712,113710.0,113700.0,0.1011]
[1759165096686,1.40885314,113710.0,113700.0,0.45190061]
[1759165097785,1.40885314,113710.0,113700.0,0.1011]
[1759165097989,1.40885314,113710.0,113700.0,0.45190061]
[1759165098389,0.58985314,113710.0,113700.0,0.45190061]
[1759165098690,1.40909314,113710.0,113700.0,0.45190061]
[1759165099191,1.40909314,113710.0,113700.0,0.1011]
[1759165099391,1.40909314,113710.0,113700.0,0.45190061]
[1759165100396,1.40909314,113710.0,113700.0,0.1011]
[1759165100590,1.40909314,113710.0,113700.0,0.45190061]
[1759165101189,1.44041712,113710.0,113700.0,0.45190061]
[1759165102100,1.43977712,113710.0,113700.0,0.45190061]
[1759165102284,1.43977712,113710.0,113700.0,0.1011]
[1759165102685,1.79057773,113710.0,113700.0,0.1011]
[1759165103898,1.80625556,113710.0,113700.0,0.1011]
[1759165104200,1.80621556,113710.0,113700.0,0.1011]
[1759165104593,1.44541556,113710.0,113700.0,0.1011]
[1759165104794,1.45541495,113710.0,113700.0,0.1011]
[1759165108796,1.43461347,113710.0,113700.0,0.1011]
[1759165109002,1.45543256,113710.0,113700.0,0.1011]
[1759165109195,1.80623317,113710.0,113700.0,0.1011]
[1759165109600,2.20630027,113710.0,113700.0,0.1011]
[1759165111302,2.22226218,113710.0,113700.0,0.1011]
[1759165112095,2.15923136,113710.0,113700.0,0.1011]
[1759165113397,2.20633559,113710.0,113700.0,0.0781477]
[1759165114705,2.15923136,113710.0,113700.0,0.0781477]
[1759165115101,1.80843075,113710.0,113700.0,0.0781477]
[1759165115297,2.15923136,113710.0,113700.0,0.0781477]
[1759165117611,2.13841227,113710.0,113700.0,0.0781477]
[1759165117819,2.15926959,113710.0,113700.0,0.0781477]
[1759165118316,2.15674959,113710.0,113700.0,0.0781477]
[1759165119218,0.1225817,113690.0,113680.0,0.35080061]
[1759165119405,1.01118093,113690.0,113680.0,0.35080061]
[1759165120418,1.01118093,113690.0,113680.0,0.36280061]
[1759165120921,1.01118093,113690.0,113680.0,0.36880061]